[Event "GrandPrix_30.05"]
[Site "Chess.com"]
[Date "2020.05.30"]
[Round "5"]
[White "Sporty207"]
[Black "BairaKovanova"]
[Result "1/2-1/2"]
[WhiteElo "2204"]
[BlackElo "2117"]
[TimeControl "600+2"]
[EndTime "10:09:28 PDT"]
[Termination "Game drawn by agreement"]

1. d4 {[%clk 0:10:01.9]} 1... Nf6 {[%clk 0:09:58.2]} 2. c4 {[%clk 0:09:58.5]}
2... e6 {[%clk 0:09:58.7]} 3. Nc3 {[%clk 0:09:58.8]} 3... Bb4 {[%clk 0:09:58.6]}
4. e3 {[%clk 0:09:59.9]} 4... O-O {[%clk 0:09:58.7]} 5. Bd2 {[%clk 0:09:57.9]}
5... d5 {[%clk 0:09:54.5]} 6. Nf3 {[%clk 0:09:58.1]} 6... b6 {[%clk 0:09:52.1]}
7. cxd5 {[%clk 0:09:57.4]} 7... Nxd5 {[%clk 0:09:11.9]} 8. Nxd5 {[%clk
0:09:54.4]} 8... Bxd2+ {[%clk 0:09:11.7]} 9. Qxd2 {[%clk 0:09:55.9]} 9... Qxd5
{[%clk 0:08:26.2]} 10. Bd3 {[%clk 0:09:53.6]} 10... Ba6 {[%clk 0:08:16.1]} 11.
Rc1 {[%clk 0:09:45.8]} 11... Bxd3 {[%clk 0:08:10.3]} 12. Qxd3 {[%clk 0:09:47.7]}
12... c5 {[%clk 0:08:03.8]} 13. O-O {[%clk 0:09:44]} 13... Nd7 {[%clk
0:07:26.6]} 14. Qb1 {[%clk 0:09:36.1]} 14... cxd4 {[%clk 0:07:23.2]} 15. Rfd1
{[%clk 0:09:25.3]} 15... e5 {[%clk 0:06:56.8]} 16. exd4 {[%clk 0:09:25.3]} 16...
e4 {[%clk 0:06:57.3]} 17. Ne1 {[%clk 0:09:25.8]} 17... Nf6 {[%clk 0:06:53.3]}
18. Nc2 {[%clk 0:09:20.8]} 1/2-1/2

[Event "GrandPrix_30.05"]
[Site "Chess.com"]
[Date "2020.05.30"]
[Round "5"]
[White "Lukianoo"]
[Black "Funo09"]
[Result "0-1"]
[WhiteElo "2565"]
[BlackElo "2711"]
[TimeControl "600+2"]
[EndTime "10:09:39 PDT"]
[Termination "Funo09 won by resignation"]

1. e4 {[%clk 0:10:01.9]} 1... c5 {[%clk 0:10:00.3]} 2. Nf3 {[%clk 0:10:01.3]}
2... Nf6 {[%clk 0:10:01.2]} 3. e5 {[%clk 0:10:00.6]} 3... Nd5 {[%clk 0:10:02.3]}
4. Nc3 {[%clk 0:10:00.9]} 4... e6 {[%clk 0:10:03.8]} 5. b3 {[%clk 0:10:01.6]}
5... Nc6 {[%clk 0:09:32.7]} 6. Bb5 {[%clk 0:09:58.5]} 6... Nxc3 {[%clk
0:09:23.6]} 7. dxc3 {[%clk 0:09:58.6]} 7... Qc7 {[%clk 0:09:22.6]} 8. Bf4 {[%clk
0:09:46.8]} 8... a6 {[%clk 0:09:18.1]} 9. Bxc6 {[%clk 0:09:45.7]} 9... Qxc6
{[%clk 0:09:14]} 10. O-O {[%clk 0:09:44.6]} 10... b5 {[%clk 0:09:01.2]} 11. Qd2
{[%clk 0:09:45]} 11... Bb7 {[%clk 0:08:59.4]} 12. Rad1 {[%clk 0:09:45.2]} 12...
h6 {[%clk 0:08:54.7]} 13. h4 {[%clk 0:09:41.7]} 13... O-O-O {[%clk 0:08:08.9]}
14. c4 {[%clk 0:09:33.4]} 14... g5 {[%clk 0:07:59.4]} 15. hxg5 {[%clk 0:09:30]}
15... hxg5 {[%clk 0:08:00]} 16. Bxg5 {[%clk 0:09:29.1]} 16... Qxf3 {[%clk
0:07:49.7]} 17. gxf3 {[%clk 0:09:02.4]} 17... Bxf3 {[%clk 0:07:51.6]} 18. Bh6
{[%clk 0:08:56.5]} 18... Bxh6 {[%clk 0:07:41.5]} 0-1

[Event "GrandPrix_30.05"]
[Site "Chess.com"]
[Date "2020.05.30"]
[Round "5"]
[White "Firegrizzly"]
[Black "AnotherGrumpy"]
[Result "1-0"]
[WhiteElo "2211"]
[BlackElo "1978"]
[TimeControl "600+2"]
[EndTime "10:10:40 PDT"]
[Termination "Firegrizzly won by resignation"]

1. e4 {[%clk 0:10:01.9]} 1... e5 {[%clk 0:09:57.9]} 2. Nf3 {[%clk 0:10:01.2]}
2... Nc6 {[%clk 0:09:57.8]} 3. d4 {[%clk 0:10:02]} 3... exd4 {[%clk 0:09:56.9]}
4. Nxd4 {[%clk 0:10:03.8]} 4... Nf6 {[%clk 0:09:56.9]} 5. Nxc6 {[%clk
0:10:01.1]} 5... bxc6 {[%clk 0:09:58.8]} 6. Bd3 {[%clk 0:10:02]} 6... Bb4+
{[%clk 0:09:56]} 7. c3 {[%clk 0:09:59.3]} 7... Bc5 {[%clk 0:09:56.4]} 8. O-O
{[%clk 0:09:58.6]} 8... O-O {[%clk 0:09:55.6]} 9. e5 {[%clk 0:09:51.3]} 9... Nd5
{[%clk 0:09:51.6]} 10. Qh5 {[%clk 0:09:49.4]} 10... g6 {[%clk 0:09:50.6]} 11.
Qh6 {[%clk 0:09:48]} 11... Be7 {[%clk 0:09:38.5]} 12. Na3 {[%clk 0:09:13.7]}
12... d6 {[%clk 0:09:36]} 13. Nc4 {[%clk 0:09:13.2]} 13... Nb6 {[%clk
0:09:29.3]} 14. exd6 {[%clk 0:08:44.7]} 14... cxd6 {[%clk 0:09:26.3]} 15. Bf4
{[%clk 0:08:26.5]} 15... Nxc4 {[%clk 0:09:25.1]} 16. Bxc4 {[%clk 0:08:26.8]}
16... d5 {[%clk 0:09:24.2]} 17. Bd3 {[%clk 0:08:24.8]} 17... Bf6 {[%clk
0:09:23.7]} 18. Rfe1 {[%clk 0:08:07.3]} 18... Be6 {[%clk 0:09:20.6]} 19. Be5
{[%clk 0:07:58.4]} 19... Bxe5 {[%clk 0:09:18]} 20. Rxe5 {[%clk 0:08:00.3]} 20...
Qf6 {[%clk 0:09:19]} 21. Rae1 {[%clk 0:07:58.3]} 21... Rab8 {[%clk 0:09:20.4]}
22. b3 {[%clk 0:07:53.8]} 22... Rfd8 {[%clk 0:09:13.2]} 23. h4 {[%clk
0:07:52.7]} 23... c5 {[%clk 0:09:10.5]} 24. h5 {[%clk 0:07:51.2]} 24... Qg7
{[%clk 0:09:03.3]} 25. Qf4 {[%clk 0:07:39]} 25... c4 {[%clk 0:08:50.7]} 26. h6
{[%clk 0:07:34]} 26... Qf8 {[%clk 0:08:43.3]} 27. Bc2 {[%clk 0:07:34.6]} 27...
cxb3 {[%clk 0:08:38.8]} 28. Bxb3 {[%clk 0:07:32.6]} 28... Rbc8 {[%clk
0:08:38.8]} 29. Qe3 {[%clk 0:07:28.2]} 29... Qc5 {[%clk 0:08:28.7]} 30. Rxe6
{[%clk 0:07:24.4]} 1-0

[Event "GrandPrix_30.05"]
[Site "Chess.com"]
[Date "2020.05.30"]
[Round "5"]
[White "Margency"]
[Black "ly4o"]
[Result "1-0"]
[WhiteElo "2221"]
[BlackElo "2025"]
[TimeControl "600+2"]
[EndTime "10:12:29 PDT"]
[Termination "Margency won by resignation"]

1. e4 {[%clk 0:10:01.9]} 1... c5 {[%clk 0:10:00.8]} 2. Nf3 {[%clk 0:10:02.5]}
2... Nc6 {[%clk 0:10:01.8]} 3. d4 {[%clk 0:10:03.7]} 3... cxd4 {[%clk
0:10:03.7]} 4. Nxd4 {[%clk 0:10:05.6]} 4... Qb6 {[%clk 0:10:05.2]} 5. Nb3 {[%clk
0:10:06.3]} 5... Nf6 {[%clk 0:10:05.7]} 6. Nc3 {[%clk 0:10:07.5]} 6... e6 {[%clk
0:10:06.9]} 7. Bd3 {[%clk 0:10:08.5]} 7... a6 {[%clk 0:10:06.2]} 8. Be3 {[%clk
0:10:08.9]} 8... Qc7 {[%clk 0:10:07.4]} 9. f4 {[%clk 0:10:10.1]} 9... d6 {[%clk
0:10:07.2]} 10. Qf3 {[%clk 0:10:10.9]} 10... Be7 {[%clk 0:10:06.1]} 11. O-O-O
{[%clk 0:10:11.8]} 11... Nd7 {[%clk 0:10:00.6]} 12. g4 {[%clk 0:10:12.2]} 12...
b5 {[%clk 0:10:01]} 13. g5 {[%clk 0:10:11.9]} 13... Bb7 {[%clk 0:10:01.9]} 14.
Qh3 {[%clk 0:10:09.6]} 14... Nc5 {[%clk 0:09:57.8]} 15. Kb1 {[%clk 0:10:07.3]}
15... b4 {[%clk 0:09:51.7]} 16. Ne2 {[%clk 0:10:06.6]} 16... Rc8 {[%clk
0:09:22.8]} 17. g6 {[%clk 0:09:56.8]} 17... fxg6 {[%clk 0:09:15.8]} 18. Nxc5
{[%clk 0:09:54.4]} 18... dxc5 {[%clk 0:09:17.7]} 19. Qxe6 {[%clk 0:09:54.7]}
19... Qd6 {[%clk 0:09:15.3]} 20. Qh3 {[%clk 0:09:22.5]} 20... Nd4 {[%clk
0:09:13.3]} 21. Nxd4 {[%clk 0:08:55.5]} 21... cxd4 {[%clk 0:09:15.2]} 22. Bxd4
{[%clk 0:08:56.2]} 22... O-O {[%clk 0:09:07.1]} 23. Be5 {[%clk 0:08:47]} 23...
Qb6 {[%clk 0:09:08.1]} 24. Rhg1 {[%clk 0:08:37.9]} 24... Bf6 {[%clk 0:09:08.2]}
25. Bd6 {[%clk 0:08:17.7]} 25... Rfd8 {[%clk 0:08:59.5]} 26. e5 {[%clk
0:08:16.4]} 26... Rxd6 {[%clk 0:08:57.9]} 27. exd6 {[%clk 0:07:34.4]} 27... Qd4
{[%clk 0:08:58.6]} 28. c3 {[%clk 0:07:35.4]} 28... bxc3 {[%clk 0:08:54.9]} 29.
Bc2 {[%clk 0:07:27]} 29... Qb6 {[%clk 0:08:53.7]} 30. Qe6+ {[%clk 0:07:26]}
30... Kh8 {[%clk 0:08:52.8]} 31. Qb3 {[%clk 0:07:27]} 31... Qc6 {[%clk
0:08:52.4]} 32. Rge1 {[%clk 0:07:14.7]} 32... Qd7 {[%clk 0:08:37.8]} 33. Qe6
{[%clk 0:06:22]} 33... Qb5 {[%clk 0:08:37.7]} 34. b3 {[%clk 0:06:12.1]} 34...
Qa5 {[%clk 0:08:21.4]} 35. Qxc8+ {[%clk 0:06:08.9]} 1-0

[Event "GrandPrix_30.05"]
[Site "Chess.com"]
[Date "2020.05.30"]
[Round "5"]
[White "rim1618"]
[Black "weplaychess09"]
[Result "1-0"]
[WhiteElo "2406"]
[BlackElo "2088"]
[TimeControl "600+2"]
[EndTime "10:13:35 PDT"]
[Termination "rim1618 won by resignation"]

1. c4 {[%clk 0:10:01.9]} 1... e6 {[%clk 0:10:00.7]} 2. g3 {[%clk 0:10:00.8]}
2... d5 {[%clk 0:10:01.6]} 3. Bg2 {[%clk 0:10:00.2]} 3... Nf6 {[%clk 0:10:02.2]}
4. Nf3 {[%clk 0:09:59.3]} 4... Be7 {[%clk 0:10:02.7]} 5. O-O {[%clk 0:10:00.1]}
5... O-O {[%clk 0:10:03.7]} 6. d4 {[%clk 0:10:01.3]} 6... dxc4 {[%clk
0:10:04.6]} 7. Qc2 {[%clk 0:10:02.6]} 7... c6 {[%clk 0:10:05.6]} 8. Qxc4 {[%clk
0:09:55.7]} 8... b5 {[%clk 0:10:06.3]} 9. Qc2 {[%clk 0:09:56.8]} 9... Bb7 {[%clk
0:10:07.2]} 10. Rd1 {[%clk 0:09:57.1]} 10... Nbd7 {[%clk 0:10:06.1]} 11. Ne5
{[%clk 0:09:57.9]} 11... Rc8 {[%clk 0:10:01.2]} 12. Nc3 {[%clk 0:09:45.4]} 12...
a6 {[%clk 0:09:39.3]} 13. Bg5 {[%clk 0:09:38.7]} 13... Nxe5 {[%clk 0:09:16.7]}
14. dxe5 {[%clk 0:09:38.9]} 14... Nd5 {[%clk 0:09:17.8]} 15. Bxe7 {[%clk
0:09:35.1]} 15... Qxe7 {[%clk 0:09:17.7]} 16. Ne4 {[%clk 0:09:36.2]} 16... Rfd8
{[%clk 0:09:12.3]} 17. Nd6 {[%clk 0:09:30.7]} 17... Rc7 {[%clk 0:09:12.5]} 18.
Qc5 {[%clk 0:09:30.3]} 18... Ba8 {[%clk 0:09:04]} 19. e4 {[%clk 0:09:30.1]}
19... f6 {[%clk 0:09:02.8]} 20. f4 {[%clk 0:08:02.8]} 20... fxe5 {[%clk
0:08:51.8]} 21. fxe5 {[%clk 0:08:04.7]} 21... Nf6 {[%clk 0:08:44.5]} 22. exf6
{[%clk 0:08:02.1]} 22... gxf6 {[%clk 0:08:46]} 23. Rd2 {[%clk 0:07:36.2]} 23...
Rcd7 {[%clk 0:08:44.8]} 24. Rad1 {[%clk 0:07:36.9]} 24... Bb7 {[%clk 0:08:16.3]}
25. b4 {[%clk 0:07:27.8]} 25... Qg7 {[%clk 0:08:10.6]} 26. Bh3 {[%clk
0:07:03.9]} 26... Qe7 {[%clk 0:08:09.4]} 27. e5 {[%clk 0:07:00.7]} 27... f5
{[%clk 0:08:09.9]} 28. Rd4 {[%clk 0:06:54.1]} 28... Ba8 {[%clk 0:08:07.4]} 29.
Bg2 {[%clk 0:06:55]} 29... Rc7 {[%clk 0:08:05.3]} 30. Nxf5 {[%clk 0:06:33.2]}
30... Qxc5 {[%clk 0:08:03.6]} 31. bxc5 {[%clk 0:06:33.8]} 31... Rxd4 {[%clk
0:08:05]} 32. Nxd4 {[%clk 0:06:35.2]} 32... Rd7 {[%clk 0:08:06.6]} 33. Bf3
{[%clk 0:06:33.1]} 33... a5 {[%clk 0:07:17.5]} 34. Nxe6 {[%clk 0:06:32.9]} 34...
Rxd1+ {[%clk 0:07:17]} 35. Bxd1 {[%clk 0:06:34.8]} 35... b4 {[%clk 0:07:18.2]}
36. Ba4 {[%clk 0:06:29.2]} 36... Kf7 {[%clk 0:07:16.6]} 37. Nd4 {[%clk
0:06:27.2]} 37... Ke7 {[%clk 0:07:17]} 38. Kf2 {[%clk 0:06:28]} 38... Kd7 {[%clk
0:07:17.3]} 39. Ke3 {[%clk 0:06:29.2]} 39... Bb7 {[%clk 0:07:17.7]} 40. Kf4
{[%clk 0:06:30.4]} 40... Ke7 {[%clk 0:07:18.7]} 41. Bxc6 {[%clk 0:06:27.1]} 1-0

[Event "GrandPrix_30.05"]
[Site "Chess.com"]
[Date "2020.05.30"]
[Round "5"]
[White "Micki-taryan"]
[Black "VSanduleac"]
[Result "1-0"]
[WhiteElo "2503"]
[BlackElo "2245"]
[TimeControl "600+2"]
[EndTime "10:13:37 PDT"]
[Termination "Micki-taryan won by resignation"]

1. d4 {[%clk 0:10:01.9]} 1... d6 {[%clk 0:09:49.4]} 2. e4 {[%clk 0:10:00.8]}
2... g6 {[%clk 0:09:48.7]} 3. Nf3 {[%clk 0:09:59.8]} 3... Bg7 {[%clk 0:09:49.4]}
4. Bc4 {[%clk 0:09:59.2]} 4... e6 {[%clk 0:09:49.6]} 5. O-O {[%clk 0:09:58.6]}
5... b6 {[%clk 0:09:50.6]} 6. c3 {[%clk 0:09:54.9]} 6... Bb7 {[%clk 0:09:51.1]}
7. Re1 {[%clk 0:09:54]} 7... Nd7 {[%clk 0:09:50.9]} 8. Nbd2 {[%clk 0:09:44.5]}
8... Ne7 {[%clk 0:09:50.4]} 9. Bb3 {[%clk 0:09:37.9]} 9... O-O {[%clk
0:09:49.4]} 10. Nf1 {[%clk 0:09:37.9]} 10... c5 {[%clk 0:09:47.5]} 11. Ng3
{[%clk 0:09:34.4]} 11... Rc8 {[%clk 0:09:45.9]} 12. Bf4 {[%clk 0:09:18.9]} 12...
cxd4 {[%clk 0:09:41.7]} 13. cxd4 {[%clk 0:09:13.6]} 13... e5 {[%clk 0:09:37.2]}
14. Be3 {[%clk 0:08:59.8]} 14... Nc6 {[%clk 0:09:36.6]} 15. Bd5 {[%clk
0:08:30.2]} 15... Qc7 {[%clk 0:09:33.7]} 16. Rc1 {[%clk 0:08:25.4]} 16... Qb8
{[%clk 0:09:34]} 17. Qa4 {[%clk 0:08:04.9]} 17... exd4 {[%clk 0:09:30.9]} 18.
Nxd4 {[%clk 0:07:48.5]} 18... Nxd4 {[%clk 0:09:23.7]} 19. Bxd4 {[%clk
0:07:44.7]} 19... Nc5 {[%clk 0:09:24.3]} 20. Qd1 {[%clk 0:07:45.1]} 20... Bh6
{[%clk 0:09:19.6]} 21. Rc3 {[%clk 0:07:24]} 21... Bxd5 {[%clk 0:09:12.8]} 22.
exd5 {[%clk 0:07:25.9]} 22... Rfe8 {[%clk 0:09:12]} 23. Rxe8+ {[%clk 0:06:47.8]}
23... Rxe8 {[%clk 0:09:12]} 24. h3 {[%clk 0:06:46.7]} 24... a5 {[%clk
0:09:09.8]} 25. Qf3 {[%clk 0:06:36.3]} 25... Qd8 {[%clk 0:09:04.5]} 26. Bf6
{[%clk 0:06:09.9]} 26... Qd7 {[%clk 0:08:49.9]} 27. Rc4 {[%clk 0:06:10.8]} 27...
Bg7 {[%clk 0:08:45]} 28. Nh5 {[%clk 0:05:53.2]} 28... Bh6 {[%clk 0:08:19.4]} 29.
Bc3 {[%clk 0:05:50]} 29... gxh5 {[%clk 0:08:16.1]} 30. Qf6 {[%clk 0:05:50]}
30... Re5 {[%clk 0:08:14.5]} 31. Qxh6 {[%clk 0:05:39.3]} 31... Qf5 {[%clk
0:08:08.9]} 32. Bxe5 {[%clk 0:05:23.5]} 32... Qxe5 {[%clk 0:08:09]} 33. Rc3
{[%clk 0:05:08.6]} 1-0

[Event "GrandPrix_30.05"]
[Site "Chess.com"]
[Date "2020.05.30"]
[Round "5"]
[White "AvitalBor"]
[Black "khekhm"]
[Result "1/2-1/2"]
[WhiteElo "2630"]
[BlackElo "2456"]
[TimeControl "600+2"]
[EndTime "10:13:42 PDT"]
[Termination "Game drawn by repetition"]

1. e4 {[%clk 0:10:01.9]} 1... c5 {[%clk 0:09:52.7]} 2. c3 {[%clk 0:10:02.3]}
2... Nf6 {[%clk 0:09:53.2]} 3. e5 {[%clk 0:10:02.4]} 3... Nd5 {[%clk 0:09:54.3]}
4. d4 {[%clk 0:10:04.3]} 4... cxd4 {[%clk 0:09:55.5]} 5. cxd4 {[%clk 0:10:06.2]}
5... e6 {[%clk 0:09:56.4]} 6. Nf3 {[%clk 0:10:06.8]} 6... d6 {[%clk 0:09:57.5]}
7. Bc4 {[%clk 0:10:01.9]} 7... Be7 {[%clk 0:09:57.3]} 8. exd6 {[%clk 0:10:01.7]}
8... Bxd6 {[%clk 0:09:58.2]} 9. O-O {[%clk 0:10:02.2]} 9... O-O {[%clk
0:09:57.7]} 10. Nc3 {[%clk 0:10:03.8]} 10... Nxc3 {[%clk 0:09:56.3]} 11. bxc3
{[%clk 0:10:05.7]} 11... b6 {[%clk 0:09:46]} 12. Bd3 {[%clk 0:10:02.6]} 12...
Bb7 {[%clk 0:09:26.4]} 13. Ng5 {[%clk 0:09:08.9]} 13... h6 {[%clk 0:09:07.6]}
14. Qh5 {[%clk 0:08:34.5]} 14... Nd7 {[%clk 0:08:54.5]} 15. Bh7+ {[%clk
0:06:49.4]} 15... Kh8 {[%clk 0:08:53.8]} 16. Bc2 {[%clk 0:06:25.4]} 16... Kg8
{[%clk 0:08:23.6]} 17. Bh7+ {[%clk 0:05:33.4]} 17... Kh8 {[%clk 0:08:24]} 18.
Bc2 {[%clk 0:05:35.3]} 18... Kg8 {[%clk 0:06:28.1]} 19. Bh7+ {[%clk 0:05:29.4]}
1/2-1/2

[Event "GrandPrix_30.05"]
[Site "Chess.com"]
[Date "2020.05.30"]
[Round "5"]
[White "Paulz64"]
[Black "Arasvard"]
[Result "1-0"]
[WhiteElo "2214"]
[BlackElo "2009"]
[TimeControl "600+2"]
[EndTime "10:13:44 PDT"]
[Termination "Paulz64 won by resignation"]

1. d4 {[%clk 0:10:01.9]} 1... Nf6 {[%clk 0:10:00.4]} 2. c4 {[%clk 0:10:02.4]}
2... g6 {[%clk 0:10:00.8]} 3. Nc3 {[%clk 0:10:02.7]} 3... Bg7 {[%clk 0:10:01.9]}
4. Bg5 {[%clk 0:10:03.2]} 4... O-O {[%clk 0:10:00]} 5. e3 {[%clk 0:10:04.2]}
5... c5 {[%clk 0:10:00.6]} 6. d5 {[%clk 0:09:58.1]} 6... e6 {[%clk 0:09:59.8]}
7. Nf3 {[%clk 0:09:54.7]} 7... exd5 {[%clk 0:10:00.8]} 8. cxd5 {[%clk
0:09:55.8]} 8... d6 {[%clk 0:10:01.7]} 9. Nd2 {[%clk 0:09:56.1]} 9... h6 {[%clk
0:10:00.6]} 10. Bh4 {[%clk 0:09:55.6]} 10... Nbd7 {[%clk 0:09:58.6]} 11. Be2
{[%clk 0:09:51]} 11... a6 {[%clk 0:09:59.2]} 12. a4 {[%clk 0:09:50.2]} 12... Re8
{[%clk 0:09:57]} 13. O-O {[%clk 0:09:44.3]} 13... Ne5 {[%clk 0:09:54.3]} 14. e4
{[%clk 0:09:39.4]} 14... g5 {[%clk 0:09:49.8]} 15. Bg3 {[%clk 0:09:39.6]} 15...
Nfd7 {[%clk 0:09:45.1]} 16. Qc2 {[%clk 0:09:11.3]} 16... Qe7 {[%clk 0:09:40.5]}
17. f4 {[%clk 0:08:45.6]} 17... gxf4 {[%clk 0:09:38.9]} 18. Bxf4 {[%clk
0:08:40.8]} 18... Ng6 {[%clk 0:09:38.7]} 19. Bg3 {[%clk 0:08:35.9]} 19... Nde5
{[%clk 0:09:36.1]} 20. Nc4 {[%clk 0:08:26.6]} 20... Rb8 {[%clk 0:09:19.9]} 21.
Ne3 {[%clk 0:08:18.8]} 21... Qg5 {[%clk 0:09:08.1]} 22. Nf5 {[%clk 0:08:14]}
22... Bxf5 {[%clk 0:08:41.3]} 23. exf5 {[%clk 0:08:14.9]} 23... Nf8 {[%clk
0:07:09.3]} 24. Ne4 {[%clk 0:07:46.2]} 24... Qd8 {[%clk 0:07:09.7]} 25. f6
{[%clk 0:07:29.5]} 25... Bh8 {[%clk 0:07:09.9]} 26. Bf4 {[%clk 0:07:02.9]} 26...
Neg6 {[%clk 0:06:36]} 27. Bxh6 {[%clk 0:06:53.9]} 27... Nh7 {[%clk 0:06:35.4]}
28. Bh5 {[%clk 0:06:40.3]} 28... Rxe4 {[%clk 0:06:17.9]} 29. Bxg6 {[%clk
0:06:23.5]} 1-0

[Event "GrandPrix_30.05"]
[Site "Chess.com"]
[Date "2020.05.30"]
[Round "5"]
[White "Arm-Akiba"]
[Black "levvard"]
[Result "1-0"]
[WhiteElo "2702"]
[BlackElo "2053"]
[TimeControl "600+2"]
[EndTime "10:13:51 PDT"]
[Termination "Arm-Akiba won by resignation"]

1. d4 {[%clk 0:10:01.9]} 1... e6 {[%clk 0:10:00.1]} 2. c4 {[%clk 0:10:02]} 2...
d6 {[%clk 0:10:00]} 3. Nf3 {[%clk 0:10:01.8]} 3... Be7 {[%clk 0:09:55.8]} 4. Nc3
{[%clk 0:10:01.9]} 4... c5 {[%clk 0:09:55.5]} 5. g3 {[%clk 0:09:59]} 5... cxd4
{[%clk 0:09:54.9]} 6. Nxd4 {[%clk 0:09:59.8]} 6... e5 {[%clk 0:09:53.5]} 7. Nc2
{[%clk 0:09:58.5]} 7... Nf6 {[%clk 0:09:52.7]} 8. Bg2 {[%clk 0:09:58.9]} 8...
Nc6 {[%clk 0:09:52.3]} 9. O-O {[%clk 0:09:59]} 9... Be6 {[%clk 0:09:51.2]} 10.
b3 {[%clk 0:09:58.6]} 10... Qd7 {[%clk 0:09:50.1]} 11. Bg5 {[%clk 0:09:57.7]}
11... O-O {[%clk 0:09:48.7]} 12. Bxf6 {[%clk 0:09:53]} 12... Bxf6 {[%clk
0:09:49.3]} 13. Nd5 {[%clk 0:09:54.2]} 13... Bd8 {[%clk 0:09:46.1]} 14. Qd2
{[%clk 0:09:50.5]} 14... Ba5 {[%clk 0:09:42.7]} 15. b4 {[%clk 0:09:37.6]} 15...
Bb6 {[%clk 0:09:36.7]} 16. Rfd1 {[%clk 0:09:27.7]} 16... Rfc8 {[%clk 0:09:31.6]}
17. Rac1 {[%clk 0:09:15]} 17... Rd8 {[%clk 0:09:27.7]} 18. a4 {[%clk 0:08:40.7]}
18... Bc7 {[%clk 0:09:24.6]} 19. a5 {[%clk 0:08:36.3]} 19... Rac8 {[%clk
0:09:22.3]} 20. Qg5 {[%clk 0:08:00.3]} 20... Kf8 {[%clk 0:09:09.9]} 21. Qe3
{[%clk 0:07:52.4]} 21... Bf5 {[%clk 0:09:06.2]} 22. Qa3 {[%clk 0:07:30.8]} 22...
Kg8 {[%clk 0:08:59.3]} 23. a6 {[%clk 0:07:13]} 23... bxa6 {[%clk 0:08:45.5]} 24.
Qxa6 {[%clk 0:07:11.8]} 24... Be6 {[%clk 0:08:41.2]} 25. Qxc6 {[%clk 0:07:05.3]}
25... a5 {[%clk 0:08:24.6]} 26. Qxd7 {[%clk 0:07:01.3]} 26... Rxd7 {[%clk
0:08:24.8]} 27. b5 {[%clk 0:06:49.2]} 27... Bxd5 {[%clk 0:08:21.8]} 28. Bxd5
{[%clk 0:06:48.8]} 28... Rdd8 {[%clk 0:08:17.8]} 29. Bc6 {[%clk 0:06:49.3]}
29... Rb8 {[%clk 0:08:16]} 30. Ne3 {[%clk 0:06:49.6]} 30... Bb6 {[%clk
0:08:14.6]} 31. Nd5 {[%clk 0:06:48.9]} 31... Bc5 {[%clk 0:08:13.8]} 32. Ra1
{[%clk 0:06:49]} 32... h5 {[%clk 0:08:05.6]} 33. Rxa5 {[%clk 0:06:47.7]} 33...
Kh7 {[%clk 0:08:05]} 34. Kg2 {[%clk 0:06:47.1]} 34... f6 {[%clk 0:08:04.4]} 35.
Ne7 {[%clk 0:06:44.3]} 35... h4 {[%clk 0:07:58.7]} 36. Be4+ {[%clk 0:06:44.2]}
36... g6 {[%clk 0:07:55.4]} 37. Bxg6+ {[%clk 0:06:41.5]} 37... Kh6 {[%clk
0:07:55]} 38. Be4 {[%clk 0:06:41.6]} 38... Kg5 {[%clk 0:07:54]} 39. Nc6 {[%clk
0:06:33.7]} 39... h3+ {[%clk 0:07:52.8]} 40. Kxh3 {[%clk 0:06:30]} 40... Rh8+
{[%clk 0:07:52.2]} 41. Kg2 {[%clk 0:06:31.1]} 41... Rbe8 {[%clk 0:07:49.9]} 42.
h4+ {[%clk 0:06:28.8]} 42... Kh6 {[%clk 0:07:48.7]} 43. Ra6 {[%clk 0:06:28.8]}
43... Kg7 {[%clk 0:07:46.9]} 44. b6 {[%clk 0:06:27.1]} 44... f5 {[%clk
0:07:45.5]} 45. Bd5 {[%clk 0:06:26.2]} 45... Kf6 {[%clk 0:07:45.2]} 46. b7
{[%clk 0:06:26]} 46... f4 {[%clk 0:07:43.7]} 47. Rb1 {[%clk 0:06:24.5]} 47...
fxg3 {[%clk 0:07:42.7]} 48. fxg3 {[%clk 0:06:25.1]} 1-0

[Event "GrandPrix_30.05"]
[Site "Chess.com"]
[Date "2020.05.30"]
[Round "5"]
[White "Frozygul"]
[Black "Herracek"]
[Result "1-0"]
[WhiteElo "2192"]
[BlackElo "2247"]
[TimeControl "600+2"]
[EndTime "10:14:13 PDT"]
[Termination "Frozygul won by resignation"]

1. d4 {[%clk 0:09:55.4]} 1... Nf6 {[%clk 0:10:00.8]} 2. c4 {[%clk 0:09:54.2]}
2... e5 {[%clk 0:10:02.1]} 3. dxe5 {[%clk 0:09:54.6]} 3... Ng4 {[%clk
0:10:03.5]} 4. Bf4 {[%clk 0:09:53.9]} 4... g5 {[%clk 0:10:04.5]} 5. Bg3 {[%clk
0:09:54]} 5... Bg7 {[%clk 0:10:05.8]} 6. Nf3 {[%clk 0:09:28.4]} 6... Nc6 {[%clk
0:10:03.6]} 7. Nc3 {[%clk 0:09:02.5]} 7... Ngxe5 {[%clk 0:10:03.5]} 8. Nxe5
{[%clk 0:08:56.4]} 8... Nxe5 {[%clk 0:10:05.4]} 9. h4 {[%clk 0:08:57.5]} 9... g4
{[%clk 0:10:04.6]} 10. h5 {[%clk 0:08:52.5]} 10... h6 {[%clk 0:10:05.5]} 11. e3
{[%clk 0:08:50.1]} 11... d6 {[%clk 0:10:05.4]} 12. Bh4 {[%clk 0:08:16.5]} 12...
f6 {[%clk 0:09:51]} 13. Bd3 {[%clk 0:08:08.4]} 13... Be6 {[%clk 0:09:50.5]} 14.
Nd5 {[%clk 0:08:01.4]} 14... c6 {[%clk 0:09:49.6]} 15. Nf4 {[%clk 0:07:59.7]}
15... Qa5+ {[%clk 0:09:48.9]} 16. Kf1 {[%clk 0:07:55.3]} 16... Bxc4 {[%clk
0:09:35]} 17. Bxc4 {[%clk 0:06:45.5]} 17... Nxc4 {[%clk 0:09:36.9]} 18. Qxg4
{[%clk 0:06:44.4]} 18... Nd2+ {[%clk 0:09:08.9]} 19. Kg1 {[%clk 0:06:45]} 19...
O-O {[%clk 0:08:59.5]} 20. Ne6 {[%clk 0:06:46]} 20... Rf7 {[%clk 0:08:54.2]} 21.
Bxf6 {[%clk 0:06:46.3]} 21... Ne4 {[%clk 0:08:22.1]} 22. Bxg7 {[%clk 0:06:14.2]}
22... Nxf2 {[%clk 0:08:13.7]} 23. Qg6 {[%clk 0:06:11.5]} 23... Qf5 {[%clk
0:08:13]} 24. Qxf5 {[%clk 0:06:03]} 24... Rxf5 {[%clk 0:08:13.5]} 25. Rh4 {[%clk
0:05:57.9]} 25... Re8 {[%clk 0:08:12.1]} 26. Nd4 {[%clk 0:05:56.3]} 26... Rf7
{[%clk 0:07:49]} 27. Bxh6 {[%clk 0:05:55.4]} 27... Nd3 {[%clk 0:07:50.5]} 28. g4
{[%clk 0:05:36.6]} 28... Ne5 {[%clk 0:07:47.2]} 29. Kg2 {[%clk 0:05:33.8]} 29...
Nc4 {[%clk 0:07:42.5]} 30. Nf5 {[%clk 0:05:28.6]} 30... Re4 {[%clk 0:07:39]} 31.
Kg3 {[%clk 0:05:15.6]} 31... Kh7 {[%clk 0:07:33.2]} 32. g5 {[%clk 0:05:09.9]}
1-0